bitfinex/quotes_ETHUSD_20240729
["timestamp","ask_amount","ask_price","bid_price","bid_amount"]
[1722235978860,2.2764,3387.5,3386.1,2.3626]
[1722235979066,2.2764,3387.5,3386.9,2.362]
[1722235979281,2.2764,3387.5,3386.1,1.621]
[1722235979282,2.50404,3387.5,3387.0,1.071]
[1722235979443,2.50404,3387.5,3387.2,2.3618]
[1722235979642,2.2764,3387.5,3387.2,1.071]
[1722235980778,2.2764,3387.5,3387.1,2.3619]
[1722235982765,0.05920198,3387.4,3386.5,2.3623]
[1722235982965,0.2335602,3387.3,3386.9,2.36203]
[1722235983165,4.69723198,3387.5,3386.6,2.36224]
[1722235983368,4.69723198,3387.5,3386.8,2.36209]
[1722235983571,2.33560198,3387.5,3386.9,2.36203]
[1722235983755,2.33560198,3387.5,3386.6,2.36224]
[1722235983756,0.2335602,3387.4,3386.6,2.36224]
[1722235984073,0.2335602,3387.4,3386.8,2.3621]
[1722235984646,0.2335602,3387.4,3386.6,2.36224]
[1722235984647,2.2764,3387.5,3386.5,5.73988786]
[1722235984849,2.2764,3387.5,3387.0,2.36196]
[1722235985337,2.2764,3387.5,3387.1,2.36189]
[1722235985533,2.2764,3387.5,3386.9,2.36198]
[1722235985739,2.2764,3387.5,3386.9,2.36202]
[1722235985980,2.2764,3387.5,3387.0,2.36194]
[1722235987739,2.2764,3387.5,3386.9,2.36202]
[1722235988156,2.2764,3387.5,3387.0,2.36196]
[1722235989277,2.2764,3387.5,3386.6,2.36223]
[1722235989447,2.2764,3387.5,3386.5,5.73988786]
[1722235989448,0.05920198,3387.4,3386.5,5.73988786]
[1722235989665,2.36211,3386.8,3386.5,5.73988786]
[1722235989962,2.4051,3386.9,3385.4,2.36302]
[1722235989963,2.36233,3386.5,3385.9,8.10261786]
[1722235990138,2.4051,3386.9,3386.1,2.36258]
[1722235990335,2.4051,3386.9,3386.2,2.36251]
[1722235990565,4.76714,3386.9,3386.3,2.36245]
[1722235990733,4.76714,3386.9,3386.1,2.36255]
[1722235990936,2.36212,3386.8,3386.1,2.36255]
[1722235991347,3.418005,3386.9,3386.2,2.36252]
[1722235991551,3.418005,3386.9,3386.3,2.36243]
[1722235992295,3.418005,3386.9,3385.9,5.73988786]
[1722235992296,5.780045,3386.9,3386.1,2.36259]
[1722235992439,5.780045,3386.9,3386.3,2.36241]
[1722235992782,5.780045,3386.9,3386.3,2.36242]
[1722235992985,1.1141955,3386.8,3386.3,2.36242]
[1722235993156,3.4763055,3386.8,3386.1,2.36259]
[1722235993360,3.4763055,3386.8,3385.9,5.73988786]
[1722235993361,2.4658,3386.2,3385.9,5.73988786]
[1722235993861,2.4658,3386.2,3386.1,2.3626]
[1722235995375,3.0,3386.7,3386.2,2.36252]
[1722235995566,4.1141955,3386.8,3386.2,2.36252]
[1722235995769,0.82037355,3386.7,3386.2,2.36252]
[1722235996082,3.18255355,3386.7,3386.0,2.36262]
[1722235996276,3.0,3386.6,3386.1,2.36258]
[1722235996481,5.36225,3386.6,3385.9,8.10255786]
[1722235996786,0.61826236,3386.5,3385.9,8.10255786]
[1722235996969,2.98058236,3386.5,3385.9,8.10255786]
[1722235997486,2.36249,3386.3,3385.9,5.73988786]
[1722235997712,2.3038,3386.2,3385.9,5.73988786]
[1722235997840,2.36300198,3386.2,3385.9,5.73988786]
[1722235998379,4.66633,3386.2,3385.9,5.73988786]
[1722235998683,2.36300198,3386.2,3385.9,5.73988786]
[1722235999187,2.3038,3386.2,3385.9,5.73988786]
[1722235999478,2.3038,3386.2,3385.5,2.36299]
[1722235999785,2.3038,3386.2,3385.3,5.73988786]
[1722235999786,2.3038,3386.2,3385.6,2.36289]
[1722235999961,4.66634,3386.2,3385.6,2.36289]
[1722236000139,2.3038,3386.2,3385.7,2.36286]
[1722236000482,2.3038,3386.2,3385.6,2.36289]
[1722236000645,2.36300198,3386.2,3385.6,2.36289]
[1722236000844,2.36300198,3386.2,3385.7,2.36287]
[1722236001046,2.3038,3386.2,3385.7,2.36287]
[1722236001246,2.3038,3386.2,3386.0,2.36266]
[1722236003261,2.3038,3386.2,3386.1,2.3626]
[1722236003649,2.2793,3386.6,3386.1,2.3626]
[1722236003850,3.043449,3386.6,3386.1,2.3626]
[1722236004049,3.0,3386.5,3386.1,2.3626]
[1722236004694,3.0,3386.5,3385.9,2.36271]
[1722236005005,3.0,3386.5,3386.2,2.36252]
[1722236005191,2.2793,3386.6,3386.2,2.36252]
[1722236005414,2.2793,3386.6,3386.0,2.36262]
[1722236006009,5.2793,3386.6,3386.1,2.36259]
[1722236006215,2.2793,3386.6,3386.3,2.36245]
[1722236006421,2.2793,3386.6,3386.4,2.36238]
[1722236006604,2.2793,3386.6,3386.2,2.36249]
[1722236007526,2.2793,3386.6,3386.3,2.36245]
[1722236008218,2.2793,3386.6,3386.4,2.36238]
[1722236009696,2.2793,3386.6,3386.2,2.36249]
[1722236009905,2.2793,3386.6,3386.4,2.36232]
[1722236012286,5.3236,3387.0,3386.5,2.36232]
[1722236012487,3.584932,3387.0,3386.5,2.36232]
[1722236012723,3.0,3386.9,3386.5,2.36232]
[1722236013216,7.18712,3386.8,3386.0,2.36262]
[1722236013388,2.36219,3386.7,3385.9,2.36273]
[1722236013717,2.36226,3386.6,3386.0,2.36266]
[1722236013917,2.36274,3385.9,3385.4,5.73988786]
[1722236014080,2.36285,3385.8,3385.1,21.84325]
[1722236014407,2.36289,3385.7,3385.1,21.84329]
[1722236015422,2.36307,3385.5,3385.1,19.48]
[1722236015580,2.41190198,3385.6,3385.1,19.48]
[1722236015780,2.36313,3385.4,3385.1,19.48]
[1722236016326,2.36317,3385.3,3385.1,19.48]
[1722236016894,2.36306,3385.5,3385.1,19.48]
[1722236017093,2.36308,3385.4,3385.1,19.48]
[1722236017318,2.36317,3385.3,3384.7,2.36356]
[1722236017627,2.36308,3385.4,3384.6,2.36363]
[1722236017628,2.36323,3385.2,3384.6,2.36363]
[1722236017783,4.9187,3385.6,3384.5,5.73988786]
[1722236017784,2.36341,3385.0,3384.5,5.73988786]
[1722236017989,0.05920198,3384.9,3384.5,5.73988786]
[1722236018210,2.42261198,3385.0,3384.5,5.73988786]
[1722236018584,2.36344,3384.9,3384.5,5.73988786]
[1722236019712,2.36337,3385.0,3384.5,5.73988786]
[1722236019915,2.36359,3384.7,3384.5,5.73988786]
[1722236021105,2.36364,3384.6,3384.5,5.73988786]
[1722236021305,3.0,3385.1,3384.5,2.36365]
[1722236021709,4.68974,3385.2,3384.6,2.36364]
[1722236022024,3.0,3385.1,3384.6,2.36364]
[1722236022452,3.0,3385.1,3384.4,2.36373]
[1722236022653,5.3265,3385.2,3384.4,2.36373]
[1722236022849,2.36338,3385.0,3384.4,2.36373]
[1722236023062,3.0,3385.1,3384.4,2.36373]
[1722236023209,2.3633,3385.1,3384.4,2.36373]
[1722236023409,5.3633,3385.1,3384.4,2.36373]
[1722236023900,2.36306,3385.5,3384.8,2.36349]
[1722236024105,2.3632,3385.3,3384.6,2.36364]
[1722236024854,3.0,3385.4,3384.8,2.3635]
[1722236025343,5.36308,3385.4,3384.8,2.3635]
[1722236025856,5.36308,3385.4,3385.0,2.36334]
[1722236025857,3.0,3385.4,3385.0,2.36334]
[1722236026012,2.36295,3385.6,3384.8,2.36349]
[1722236026213,5.36295,3385.6,3384.8,2.36349]
[1722236026413,3.0,3385.5,3384.8,2.36349]
[1722236026854,5.36295,3385.6,3384.8,2.36349]
[1722236027758,5.36295,3385.6,3385.0,2.36331]
[1722236028712,2.36309,3385.4,3384.7,2.36352]
[1722236028912,2.36309,3385.4,3384.8,2.36344]
[1722236029508,2.36309,3385.4,3384.7,2.36352]
[1722236030039,2.36316,3385.3,3384.5,8.10357786]
[1722236030228,2.36329,3385.1,3384.5,8.10357786]
[1722236031413,2.36316,3385.3,3384.6,2.36364]
[1722236032328,2.36323,3385.2,3384.6,2.36364]
[1722236032530,2.36329,3385.1,3384.5,5.73988786]
[1722236032766,2.36329,3385.1,3384.5,8.10359786]
[1722236033912,1.278236,3385.4,3384.8,2.3635]
[1722236034156,1.278236,3385.4,3384.5,8.10359786]
[1722236034157,2.36308,3385.4,3384.6,2.3636]
[1722236034362,2.36308,3385.4,3384.5,8.10359786]
[1722236034548,2.36308,3385.4,3384.7,2.36355]
[1722236034746,2.36316,3385.3,3384.7,2.36355]
[1722236035420,2.36308,3385.4,3384.5,8.10359786]
[1722236035421,2.36323,3385.2,3384.5,8.10354786]
[1722236035634,2.36323,3385.2,3384.5,5.73988786]
[1722236035835,2.36323,3385.2,3384.6,2.36364]
[1722236036513,2.3633,3385.1,3384.5,5.73988786]
[1722236036715,2.2785,3385.0,3384.5,5.73988786]
[1722236036966,4.64188,3385.0,3384.5,5.73988786]
[1722236039334,2.36345,3384.9,3384.5,5.73988786]
[1722236039573,2.36356,3384.8,3384.5,5.73988786]
[1722236039735,2.36364,3384.6,3384.1,2.36399]
[1722236041977,2.36364,3384.6,3383.9,27.58396786]
[1722236042205,2.36364,3384.6,3384.0,2.36404]
[1722236043175,2.36383,3384.4,3383.9,5.73988786]
[1722236043377,2.45550198,3384.3,3383.9,5.73988786]
[1722236043709,4.81936198,3384.3,3383.9,5.73988786]
[1722236043875,4.76016,3384.3,3383.9,5.73988786]
[1722236044215,2.3963,3384.3,3383.9,8.10401786]
[1722236044563,2.3963,3384.3,3383.9,5.73988786]
[1722236044904,4.76016,3384.3,3383.9,5.73988786]
[1722236045210,2.3963,3384.3,3383.9,5.73988786]
[1722236046903,4.85142,3384.7,3384.0,2.36405]
[1722236047201,4.85142,3384.7,3384.2,2.36389]
[1722236047202,2.4878,3384.7,3384.2,2.36389]
[1722236048368,2.4878,3384.7,3384.3,2.36385]
[1722236048995,2.4878,3384.7,3384.1,2.36395]
[1722236049703,2.4878,3384.7,3384.2,2.36391]
[1722236051698,2.4878,3384.7,3384.3,2.36385]
[1722236051919,2.4878,3384.7,3383.8,2.36417]
[1722236052097,2.3633,3385.1,3384.4,2.36374]
[1722236052098,4.64444,3385.1,3384.4,2.36374]
[1722236052280,3.0,3385.0,3384.4,2.36374]
[1722236052479,5.36337,3385.0,3384.4,2.36374]
[1722236053229,3.0,3385.0,3384.4,2.36374]
[1722236053404,5.2811,3385.1,3384.4,2.36374]
[1722236053790,2.36341,3385.0,3384.4,2.36374]
[1722236053982,5.36341,3385.0,3384.4,2.36374]
[1722236054178,5.36341,3385.0,3384.2,2.3639]
[1722236054385,2.36344,3384.9,3384.2,2.36387]
[1722236055090,2.36344,3384.9,3384.3,2.36385]
[1722236055693,2.36351,3384.8,3384.1,2.36394]
[1722236055908,3.0,3385.0,3384.4,2.36377]
[1722236056224,5.2811,3385.1,3384.4,2.36377]
[1722236056429,3.127804,3385.0,3384.4,2.36377]
[1722236056591,0.764434,3385.0,3384.5,2.36371]
[1722236056779,3.0,3385.0,3384.5,2.36371]
[1722236057913,3.0,3385.0,3384.6,2.3636]
[1722236058124,3.0,3385.0,3384.5,2.36371]
[1722236058125,5.2811,3385.1,3384.5,2.36371]
[1722236059010,7.64439,3385.1,3384.5,2.36371]
[1722236060314,8.645145,3385.1,3384.5,2.36371]
[1722236063057,8.645145,3385.1,3384.5,2.36365]
[1722236065197,2.3634,3385.0,3384.4,2.36378]
[1722236065401,2.36345,3384.9,3384.2,2.36388]
[1722236065582,3.4643045,3384.9,3384.2,2.36388]
[1722236066089,1.1008545,3384.9,3384.4,2.36374]
[1722236066287,5.36336,3385.0,3384.4,2.36374]
[1722236066889,3.0,3385.0,3384.4,2.36374]
[1722236067500,3.0,3385.0,3384.5,2.36369]
[1722236069871,2.36347,3384.9,3384.3,2.36379]
[1722236070067,3.127909,3384.9,3384.3,2.36379]
[1722236070606,0.764439,3384.9,3384.3,2.36379]
[1722236070759,3.0,3385.0,3384.5,2.3637]
[1722236071154,3.0,3385.0,3384.3,2.36379]
[1722236071390,2.3635,3384.9,3384.3,2.36379]
[1722236071599,3.0,3385.0,3384.1,8.10384786]
[1722236071600,2.36362,3384.7,3384.1,5.73988786]
[1722236071824,2.36367,3384.6,3384.1,5.73988786]
[1722236072088,2.36384,3384.4,3384.1,5.73988786]
[1722236073895,2.36384,3384.4,3383.9,2.36413]
[1722236074096,2.36384,3384.4,3383.7,14.74421]
[1722236074298,3.13534922,3384.4,3383.7,2.36421]
[1722236074601,3.13534922,3384.4,3383.8,2.36414]
[1722236076803,4.80902,3384.5,3383.9,2.36412]
[1722236077587,2.4453,3384.5,3384.0,2.36406]
[1722236077906,5.4453,3384.5,3384.0,2.36406]
[1722236080108,7.80901,3384.5,3384.0,2.36406]
[1722236080263,7.80901,3384.5,3383.8,2.3642]
[1722236080264,7.80901,3384.5,3383.9,2.36413]
[1722236081807,7.80901,3384.5,3384.0,2.36404]
[1722236081808,5.4453,3384.5,3384.0,2.36404]
[1722236081977,2.4453,3384.5,3384.0,2.36404]
[1722236082819,2.3634,3385.0,3384.4,2.36372]
[1722236083992,5.3634,3385.0,3384.4,2.36372]
[1722236084303,7.72683,3385.0,3384.4,2.36372]
[1722236084909,2.36344,3384.9,3384.4,2.36372]
[1722236085661,2.36355,3384.8,3384.2,2.36391]
[1722236085866,2.3614,3384.7,3384.2,2.36391]
[1722236086605,4.72498,3384.7,3384.1,5.73988786]
[1722236087016,4.72498,3384.7,3384.1,8.10386786]
[1722236088812,2.36406,3384.1,3383.8,5.73988786]
[1722236089028,4.65041,3383.8,3383.3,27.58437786]
[1722236089191,4.65041,3383.8,3383.3,25.21988786]
[1722236089513,2.36428,3383.7,3383.3,25.21988786]
[1722236090682,2.2862,3383.8,3383.3,25.21988786]
[1722236090905,4.75792,3384.1,3383.4,2.36444]
[1722236091086,2.36408,3384.0,3383.4,2.36444]
[1722236091289,2.36427,3383.7,3383.3,25.21988786]
[1722236091814,2.36415,3383.9,3383.3,25.21988786]
[1722236092016,4.7579,3384.1,3383.3,25.21988786]
[1722236092226,2.3642,3383.9,3383.3,25.21988786]
[1722236092522,2.3641,3384.0,3383.3,27.58442786]
[1722236092693,2.3641,3384.0,3383.4,2.36447]
[1722236092899,2.3939,3384.1,3383.6,2.36433]
[1722236093307,2.3939,3384.1,3383.7,2.36427]
[1722236093617,2.3939,3384.1,3383.4,2.36447]
[1722236093787,2.3939,3384.1,3383.6,2.36433]
[1722236094915,2.3939,3384.1,3383.7,2.36427]
[1722236095283,2.3939,3384.1,3383.5,2.36435]
[1722236095485,2.3939,3384.1,3383.6,2.36429]
[1722236096926,4.75791,3384.1,3383.4,2.36444]
[1722236097136,2.36406,3384.0,3383.4,2.36444]
[1722236100900,2.3939,3384.1,3383.5,2.3644]
[1722236102213,2.3939,3384.1,3383.4,2.36444]
[1722236102214,2.36411,3384.0,3383.4,2.36444]
[1722236103595,2.36414,3383.9,3383.4,2.36444]
[1722236103838,2.36414,3383.9,3383.3,5.73988786]
[1722236103839,2.4625,3383.6,3383.3,5.73988786]
[1722236104331,4.82688,3383.6,3383.3,5.73988786]
[1722236104538,2.36443,3383.5,3383.3,5.73988786]
[1722236104745,2.36448,3383.4,3383.3,5.73988786]
[1722236104942,2.36448,3383.4,3382.8,2.36486]
[1722236105143,2.42377198,3383.3,3382.7,19.48]
[1722236105442,2.2552,3383.2,3382.7,21.84491]
[1722236106100,4.67904198,3383.2,3382.7,19.48]
[1722236106301,4.67904198,3383.2,3382.4,2.36518]
[1722236106302,2.36469,3383.1,3382.4,2.36518]
[1722236106511,2.36469,3383.1,3382.4,5.36518]
[1722236106842,2.2552,3383.2,3382.5,2.36511]
[1722236107544,2.2552,3383.2,3382.4,5.36518]
[1722236107545,2.2552,3383.2,3382.6,2.36502]
[1722236108045,2.2552,3383.2,3382.3,5.73988786]
[1722236108046,2.36484,3382.9,3382.3,5.73988786]
[1722236108274,2.42411198,3382.8,3382.3,5.73988786]
[1722236108421,2.3284,3382.7,3382.3,5.73988786]
[1722236108946,4.69338,3382.7,3382.3,5.73988786]
[1722236109238,2.36512,3382.5,3382.3,5.73988786]
[1722236109460,2.36512,3382.5,3382.0,19.48]
[1722236110773,2.36532,3382.2,3381.6,5.73988786]
[1722236111059,2.2948,3382.4,3381.7,2.36563]
[1722236111469,4.65998,3382.4,3381.7,2.36563]
[1722236113370,2.2948,3382.4,3381.3,18.11988786]
[1722236113664,4.67932,3382.8,3382.1,2.36534]
[1722236113968,2.3144,3382.8,3381.4,2.985]
[1722236114172,2.4629,3383.6,3382.8,2.3649]
[1722236114325,2.36455,3383.3,3382.6,2.36503]
[1722236114521,2.4629,3383.2,3382.5,5.73988786]
[1722236114738,4.82752,3383.2,3382.6,2.365]
[1722236115137,2.36492,3382.8,3382.5,5.73988786]
[1722236115361,2.372,3383.0,3382.1,2.36539]
[1722236115576,2.36497,3382.7,3382.1,2.36539]
[1722236115863,2.36504,3382.6,3381.9,25.21988786]
[1722236116079,2.4948,3382.4,3381.9,5.73988786]
[1722236116567,2.465295,3382.4,3381.9,5.73988786]
[1722236117066,2.465295,3382.4,3382.1,2.36536]
[1722236117954,2.36471,3383.1,3382.3,2.36525]
[1722236118156,2.601181,3383.1,3382.3,2.36525]
[1722236118426,1.012194,3384.0,3383.0,2.36474]
[1722236118630,2.36439,3383.6,3382.8,2.3649]
[1722236118942,2.566,3384.2,3382.5,5.73988786]
[1722236118943,2.36457,3383.3,3382.7,2.36497]
[1722236119324,2.36462,3383.2,3382.5,8.10494786]
[1722236119524,2.4873,3383.1,3382.6,2.36502]
[1722236119758,2.4873,3383.1,3382.5,5.73988786]
[1722236119972,2.4873,3383.5,3382.8,2.36484]
[1722236120283,2.36462,3383.2,3382.5,5.73988786]
[1722236120428,2.36477,3383.0,3382.5,5.73988786]
[1722236120622,0.05920198,3383.1,3382.5,8.10498786]
[1722236120830,2.42389198,3383.1,3382.5,5.73988786]
[1722236121873,2.36468,3383.2,3382.6,2.36499]
[1722236122867,2.36469,3383.1,3382.5,5.73988786]
[1722236123378,2.3547,3383.0,3382.5,5.73988786]
[1722236123672,2.36491,3382.8,3382.5,5.73988786]
[1722236123964,2.36491,3382.8,3382.1,2.36534]
[1722236126050,2.36491,3382.8,3382.2,2.36532]
[1722236127198,2.36499,3382.7,3382.0,19.48]
[1722236127498,2.36531,3382.3,3381.8,5.73988786]
[1722236127711,2.36531,3382.3,3381.7,2.36565]
[1722236129494,2.2593,3382.7,3382.1,2.36533]
[1722236129895,2.36509,3382.6,3381.9,2.36551]
[1722236130106,5.36509,3382.6,3381.9,2.36551]
[1722236131558,5.36509,3382.6,3382.0,2.36545]
[1722236132166,2.36511,3382.5,3381.9,2.36551]
[1722236132502,5.36511,3382.5,3381.9,2.36551]
[1722236132663,3.3699682,3382.5,3381.9,2.36551]
[1722236134185,3.42917018,3382.5,3381.9,2.36551]
[1722236135369,2.3652,3382.4,3381.7,2.36562]
[1722236136041,0.05920198,3382.3,3381.7,2.36562]
[1722236136900,2.3652,3382.4,3381.7,2.36562]
[1722236138646,2.3652,3382.4,3381.8,2.3656]
[1722236139239,3.46464682,3382.4,3381.8,2.3656]
[1722236139754,4.6633,3382.3,3381.6,2.36568]
[1722236139897,2.298,3382.3,3381.7,2.36566]
[1722236140898,2.298,3382.3,3381.8,2.36558]
[1722236143129,2.298,3382.3,3381.9,2.3655]
[1722236143449,2.36512,3382.5,3382.0,2.36545]
[1722236144296,5.3849,3382.6,3382.0,2.36545]
[1722236144610,3.19077767,3382.6,3382.0,2.36545]
[1722236144817,3.0,3382.5,3382.0,2.36545]
[1722236149658,2.36519,3382.4,3381.8,2.36558]
[1722236150056,2.4698,3382.3,3381.8,2.36558]
[1722236152259,2.4698,3382.3,3381.6,2.36574]
[1722236152260,4.89429198,3382.3,3381.6,2.36574]
[1722236152455,0.05920198,3382.2,3381.6,2.36574]
[1722236153939,2.42454198,3382.2,3381.6,2.36574]
[1722236154191,3.45049518,3382.2,3381.6,2.34833001]
[1722236154545,3.3912932,3382.2,3381.6,2.34833001]
[1722236154743,3.3912932,3382.2,3381.4,2.36587]
[1722236154985,2.36543,3382.1,3381.5,2.36579]
[1722236155155,3.3912932,3382.2,3381.6,2.36571]
[1722236155365,0.82262832,3382.1,3381.6,2.36571]
[1722236157366,2.4698,3382.3,3381.7,2.36565]
[1722236157588,5.4698,3382.3,3381.7,2.36565]
[1722236158401,7.83505,3382.3,3381.7,2.36565]
[1722236159164,2.36533,3382.2,3381.7,2.36565]
[1722236160278,2.36533,3382.2,3381.5,2.36576]
[1722236160279,2.36539,3382.1,3381.5,2.36576]
[1722236160475,0.05920198,3382.0,3381.5,2.36576]
[1722236160771,3.256203,3382.1,3381.5,2.36576]
[1722236160772,3.31540498,3382.1,3381.5,2.36576]
[1722236161186,2.3698,3381.9,3381.3,10.47169786]
[1722236161386,2.42900198,3381.9,3381.4,2.36588]
[1722236161600,3.34137048,3381.9,3381.4,2.36588]
[1722236162104,3.2821685,3381.9,3381.4,2.36588]
[1722236162306,2.3698,3381.9,3381.4,2.36588]
[1722236168275,4.73539,3381.9,3381.3,8.10582786]
[1722236168922,4.73539,3381.9,3381.3,2.36594]
[1722236170216,4.73539,3381.9,3381.4,2.36588]
[1722236170388,5.6418453,3381.9,3381.4,2.36588]
[1722236173583,3.2762553,3381.9,3381.5,2.36581]
[1722236173797,0.890813,3382.1,3381.6,2.36572]
[1722236174024,3.890813,3382.1,3381.6,2.36572]
[1722236174223,3.890813,3382.1,3381.4,2.36588]
[1722236174424,0.8620093,3382.0,3381.4,2.36588]
[1722236174915,3.2275093,3382.0,3381.4,2.36588]
[1722236176414,2.36553,3381.9,3381.4,2.36588]
[1722236176572,2.36553,3381.9,3381.2,2.366]
[1722236176573,0.05920198,3381.9,3381.3,2.36595]
[1722236176776,3.2275093,3382.0,3381.3,2.36595]
[1722236176977,0.96644093,3381.9,3381.3,2.36595]
[1722236177406,3.33199093,3381.9,3381.3,2.36595]
[1722236178001,3.33199093,3381.9,3381.3,2.36395]
[1722236178587,3.33199093,3381.9,3381.4,2.36587]
[1722236178789,0.96644093,3381.9,3381.4,2.36587]
[1722236179984,0.96644093,3381.9,3381.5,2.3658]
[1722236180332,0.96644093,3381.9,3380.8,4.79116]
[1722236180333,2.2756,3381.7,3380.8,1.073]
[1722236180642,2.2756,3382.0,3381.7,2.36562]
[1722236180799,2.2756,3382.0,3381.8,2.3656]
[1722236181531,5.3977,3382.3,3381.8,2.3656]
[1722236181849,0.56741844,3382.2,3381.8,2.3656]
[1722236183928,0.30899439,3382.4,3381.9,2.36553]
[1722236184308,3.30899439,3382.4,3381.9,2.36553]
[1722236185337,3.30899439,3382.4,3381.8,1.073]
[1722236185338,2.17162411,3383.0,3382.4,2.36517]
[1722236185553,3.07000684,3383.7,3382.4,2.36517]
[1722236185554,2.4387,3383.4,3383.0,2.3647]
[1722236185835,2.3326,3383.0,3381.9,1.38044578]
[1722236186042,2.3326,3383.0,3381.6,4.82939]
[1722236186043,2.3326,3382.5,3381.8,2.36555]
[1722236186192,2.3326,3382.5,3381.8,3.43855]
[1722236186396,2.17162411,3383.0,3382.0,1.073]
[1722236186706,2.3326,3382.9,3382.3,2.3652]
[1722236187641,5.3326,3382.9,3382.3,2.3652]
[1722236187822,2.3326,3382.9,3382.5,2.36511]
[1722236188208,0.27823934,3383.1,3382.6,2.36504]
[1722236188397,0.51359518,3383.0,3382.6,2.36504]
[1722236188848,0.27823934,3383.1,3382.7,2.36495]
[1722236189195,2.2759,3383.3,3382.6,2.36504]
[1722236189402,5.06755236,3383.6,3382.7,0.55]
[1722236189599,2.70319236,3383.6,3382.7,0.55]
[1722236190203,2.70319236,3383.6,3383.1,2.36463]
[1722236190204,0.30889236,3383.6,3383.1,2.36463]
[1722236190518,0.30889236,3383.6,3383.2,0.55]
[1722236190696,0.30889236,3383.6,3383.4,2.36448]
[1722236190901,2.4803,3384.0,3383.4,2.36448]
[1722236191111,0.48443,3383.9,3383.4,2.36448]
[1722236191314,0.48443,3383.9,3383.2,2.91458]
[1722236192178,0.48443,3383.9,3383.2,0.55]
[1722236192179,2.3643,3383.7,3383.2,0.55]
[1722236192339,2.3643,3383.7,3383.0,2.91476]
[1722236192340,0.5213,3383.6,3383.0,2.91476]
[1722236192543,2.36434,3383.6,3382.9,2.36483]
[1722236192866,2.36423,3383.8,3383.1,2.91464]
[1722236193073,2.36423,3383.8,3383.1,0.55]
[1722236193230,0.532896,3383.7,3383.2,2.36462]
[1722236194657,0.532896,3383.7,3383.1,0.55]
[1722236195071,2.36455,3383.3,3382.4,2.36516]
[1722236195231,2.36469,3383.1,3382.3,2.36521]
[1722236195434,2.36469,3383.1,3382.2,2.3653]
[1722236196155,2.36469,3383.1,3382.4,2.36513]
[1722236196354,0.472924,3383.0,3382.5,2.36511]
[1722236196575,0.472924,3383.0,3382.3,2.36524]
[1722236196576,2.36463,3383.2,3382.6,2.36504]
[1722236196742,4.81933,3383.5,3382.6,2.36504]
[1722236196948,4.81933,3383.5,3382.6,2.36503]
[1722236196949,2.4549,3383.5,3382.6,2.36503]
[1722236197147,2.4549,3383.5,3382.8,2.36485]
[1722236197367,0.718359,3383.4,3382.8,2.36485]
[1722236198549,3.082839,3383.4,3382.8,2.36485]
[1722236198770,3.082839,3383.4,3382.7,0.55]
[1722236198771,2.36455,3383.3,3382.7,0.55]
[1722236198972,2.36455,3383.3,3382.0,2.36546]
[1722236198973,1.0902229,3383.2,3381.7,5.51304393]
[1722236199199,2.36487,3382.9,3382.2,2.36528]
[1722236199403,2.36487,3382.9,3382.1,2.36534]
[1722236200454,2.36487,3382.9,3382.3,2.36525]
[1722236200656,2.3649,3382.8,3382.2,2.36532]
[1722236200878,0.5424102,3382.7,3381.9,2.36551]
[1722236201191,0.5424102,3382.7,3382.2,2.36532]
[1722236201388,0.5424102,3382.7,3382.3,0.55]
[1722236202585,0.5424102,3382.7,3381.7,2.36566]
[1722236202586,2.33960198,3382.6,3381.7,2.36566]
[1722236202798,2.88986022,3382.5,3381.7,2.3656]
[1722236202974,0.52470022,3382.5,3381.8,2.36559]
[1722236203170,0.52470022,3382.5,3381.3,2.4543]
[1722236203357,0.33475104,3382.4,3382.2,2.36532]
[1722236204257,0.33475104,3382.4,3382.0,2.36541]
[1722236206808,0.33475104,3382.4,3381.7,2.36564]
[1722236207105,0.33475104,3382.4,3381.8,0.55]
[1722236207312,0.33475104,3382.4,3381.9,2.36551]
[1722236207610,0.55049613,3382.3,3381.8,2.9156]
[1722236207761,0.55049613,3382.3,3382.1,2.36539]
[1722236207966,0.33475104,3382.4,3382.1,2.36539]
[1722236208195,0.33475104,3382.4,3382.0,2.36546]
[1722236208909,0.33475104,3382.4,3382.2,2.36531]
[1722236209491,0.33475104,3382.4,3382.0,2.36546]
[1722236209668,0.33475104,3382.4,3381.8,0.55]
[1722236209869,2.36511,3382.5,3381.6,2.36571]
[1722236209870,0.4980191,3382.3,3381.7,0.55]
[1722236210189,0.4980191,3382.3,3382.1,2.36538]
[1722236210370,2.2804,3382.6,3382.1,2.36538]
[1722236210729,2.36484,3382.9,3382.4,2.36518]
[1722236210730,2.3506,3382.9,3382.4,2.36518]
[1722236211721,2.3506,3382.9,3382.5,2.36511]
[1722236214142,2.36509,3382.6,3381.7,0.55]
[1722236214346,2.4818,3382.5,3381.8,2.36553]
[1722236214641,2.4818,3382.5,3381.9,2.36553]
[1722236214642,4.84691,3382.5,3381.9,2.36553]
[1722236214946,0.484691,3382.4,3381.9,2.36553]
[1722236215099,2.4818,3382.5,3382.2,2.3653]
[1722236215302,3.26147573,3382.8,3382.2,2.3653]
[1722236215728,5.62637573,3382.8,3382.2,2.3653]
[1722236216096,3.26147573,3382.8,3382.4,2.36514]
[1722236217032,3.26147573,3382.8,3382.3,2.91523]
[1722236218047,0.56262357,3382.7,3382.3,0.55]
[1722236218341,2.36503,3382.7,3382.1,0.55]
[1722236218797,2.36503,3382.7,3382.1,2.91539]
[1722236219194,2.36503,3382.7,3382.1,0.55]
[1722236219445,0.482403,3382.6,3382.1,2.91538]
[1722236219607,0.482403,3382.6,3382.2,2.36532]
[1722236219814,4.82391,3382.8,3382.2,2.36532]
[1722236220000,4.82391,3382.8,3382.3,0.55]
[1722236220533,4.82391,3382.8,3382.3,2.91524]